fUSD/lending_fUSD_20240104
["ID","MTS","AMOUNT","RATE_DAILY","PERIOD"]
[310117684,1704370238986,-739.705326,0.00031,7]
[310117685,1704370238995,-739.705326,0.00031,7]
[310117686,1704370239004,-151.0,0.00031,7]
[310117687,1704370239013,-151.0,0.00031,7]
[310117688,1704370239023,-1013844.08494511,0.00031,3]
[310117689,1704370239032,-5000.02,0.00031,3]
[310117690,1704370239042,-394190.1267223,0.00031,3]
[310117691,1704370239056,-311.84474371,0.00031,3]
[310117692,1704370239067,-960.07784106,0.00031,3]
[310117693,1704370239099,-2196.36228,0.00031,3]
[310117694,1704370239111,-868.17393225,0.00031,3]
[310117695,1704370239122,-823.5765567,0.00031,3]
[310117696,1704370239133,-69737.16949937,0.00031,3]
[310117697,1704370239154,-4103.7166656,0.00031,3]
[310117698,1704370239166,-905.01368421,0.00031,3]
[310117699,1704370239178,-77392.47103198,0.00031,3]
[310117700,1704370239190,-872.35754727,0.00031,3]
[310117701,1704370239203,-358.01197968,0.00031,3]
[310117702,1704370239214,-43678.2169,0.00031,3]
[310117703,1704370239274,-1285.22235789,0.00031,3]
[310117704,1704370239286,-951.26132272,0.00031,3]
[310117707,1704370240218,-591.27639412,0.00031,3]
[310117708,1704370240230,-720.54062004,0.00031,3]
[310117709,1704370240241,-1075.51440885,0.00031,3]
[310117710,1704370240254,-23871.47623088,0.00031,3]
[310117711,1704370240280,-1942.37721319,0.00031,3]
[310117712,1704370240293,-289.96267146,0.00031,3]
[310117713,1704370240304,-937.42206341,0.00031,3]
[310117714,1704370240316,-50013.15688125,0.00031,3]
[310117715,1704370240327,-507.65898413,0.00031,3]
[310117716,1704370240343,-915.98266452,0.00031,3]
[310117717,1704370240355,-1145.7,0.00031,3]
[310117718,1704370240367,-1424.40289611,0.00031,3]
[310117719,1704370240379,-1463.21516805,0.00031,3]
[310117720,1704370240984,-298685.07345206,0.00031,3]
[310117721,1704370240994,-88153.6295358,0.00031,3]
[310117722,1704370241006,-122505.11431526,0.00031,3]
[310117723,1704370241018,-4892.6045102,0.00031,3]
[310117724,1704370241030,-3602.21195516,0.00031,3]
[310117725,1704370241042,-4128.63986883,0.00031,3]
[310117726,1704370241053,-3933.36463944,0.00031,3]
[310117727,1704370241064,-4432.26839026,0.00031,3]
[310117728,1704370241075,-3986.2815106,0.00031,3]
[310117729,1704370241087,-12915.68685511,0.00031,3]
[310117730,1704370241105,-767.61111162,0.00031,3]
[310117731,1704370241128,-598.44913979,0.00031,3]
[310117736,1704370242688,-534.71887904,0.00029277,2]
[310117737,1704370242697,-1763.07612559,0.00030498,2]
[310117738,1704370242748,-5328.79699355,0.00030498,2]
[310117739,1704370242761,-455.2300002,0.00030498,2]
[310117740,1704370242775,-653.325,0.00030498,2]
[310117741,1704370242869,-5837.32188066,0.00030498,2]
[310117742,1704370242879,-186.26193995,0.000309,2]
[310117743,1704370242889,-500.0,0.00030999,4]
[310117744,1704370242898,-234.09504768,0.00030999,4]
[310117745,1704370242908,-370.98153674,0.00031,3]
[310117746,1704370242920,-443.4506406,0.00031,3]
[310117747,1704370242931,-450.82723935,0.00031,3]
[310117748,1704370242943,-30848.22828939,0.00031,3]
[310117749,1704370242954,-4814.59875399,0.00031,3]
[310117750,1704370242991,-1528.61905784,0.00031,3]
[310117756,1704370245962,-293.4,0.00030502,2]
[310117757,1704370245972,-273.90337558,0.0003099,10]
[310117758,1704370245987,-870.44286442,0.0003099,10]
[310117759,1704370246045,-743.93376,0.0003099,10]
[310117760,1704370246057,-165.82442034,0.00030999,4]
[310117761,1704370246066,-556.50212017,0.00030999,4]
[310117762,1704370246076,-2445.34209949,0.00031,3]
[310117763,1704370414654,-151.0,0.00032955,120]
[310117764,1704370414894,-249.0,0.00035,120]
[310117769,1704370805499,205.0,0.00022542,2]
[310117770,1704370864258,155.0,0.00022542,2]
[310117771,1704370867581,1595.36712932,0.00018034,2]
[310117772,1704370869407,155.0,0.00022542,2]
[310117773,1704370869902,15665.20993999,0.00022542,2]
[310117774,1704370874694,155.0,0.00022542,2]
[310117775,1704370881593,1595.36712932,0.00018034,2]
[310117776,1704370883374,155.0,0.00022542,2]
[310117777,1704370886518,15665.20993999,0.00022542,2]
[310117778,1704370886924,155.0,0.00022542,2]
[310117779,1704370890714,208.58243681,0.00022542,2]
[310117780,1704370890875,2004.46273701,0.00022542,2]
[310117781,1704370901891,15665.20993999,0.00022542,2]
[310117782,1704370903590,1597.6835767,0.00018034,2]
[310117783,1704370904272,271.43341545,0.00022542,2]
[310117784,1704370905411,155.0,0.00022542,2]
[310117785,1704370918149,1030.76386775,0.00022542,2]
[310117786,1704370921185,531.02174147,0.00022542,2]
[310117787,1704370921398,230.98443725,0.00022542,2]
[310117788,1704370927901,15650.18113155,0.00022542,2]
[310117789,1704370930148,1030.76386775,0.00022542,2]
[310117790,1704370937186,531.02174147,0.00022542,2]
[310117791,1704370948162,1030.76386775,0.00022542,2]
[310117792,1704370953214,531.02174147,0.00022542,2]
[310117793,1704370970455,1030.76386775,0.00022542,2]
[310117794,1704370975188,530.94329525,0.00022542,2]
[310117795,1704370990150,1029.5173161,0.00022542,2]
[310117884,1704371431900,-3117.72174705,0.00023366,2]
[310117885,1704371431910,-341.87634544,0.00023367,2]
[310117886,1704371431920,-370.082538,0.00023367,2]
[310117887,1704371431930,-245.94496958,0.00023367,2]
[310117888,1704371431939,-1203.15410319,0.00023367,2]
[310117889,1704371431949,-1253.49016719,0.00023368,2]
[310117890,1704371431959,-211.05086737,0.00023369,2]
[310117891,1704371431968,-155.0,0.00023369,2]
[310117892,1704371431978,-150.0,0.00023369,2]
[310117893,1704371431988,-282.7663495,0.0002337,2]
[310117894,1704371431998,-160.20117713,0.00023379,2]
[310117895,1704371432008,-467.34439771,0.00023485,2]
[310117896,1704371432017,-714.04764052,0.00023535,2]
[310117931,1704371432408,-317.311,0.00023535,2]
[310117936,1704371432426,-621.1207226,0.00023535,2]
[310117941,1704371432443,-407.53,0.00023535,2]
[310117947,1704371432468,-658.97568821,0.00023535,2]
[310117950,1704371432481,-428.5986,0.00023535,2]
[310117953,1704371432512,-1650.24845488,0.00023535,2]
[310117956,1704371432522,-205.0,0.00025287,2]
[310117958,1704371432532,-8.33243463,0.000258,2]
[310117961,1704371432552,-1295.66756537,0.000258,2]
[310117963,1704371432563,-499.99,0.000258,2]
[310117965,1704371432573,-1354.69,0.000258,2]
[310117967,1704371432587,-1250.0,0.00027,3]
[310117968,1704371432597,-533.93,0.00027096,2]
[310117969,1704371432607,-7475.7728,0.00027556,2]
[310117970,1704371432617,-160.20117711,0.00027889,2]
[310117971,1704371432627,-154.74,0.00028467,2]
[310117972,1704371432637,-200.0,0.00028492,2]
[310117973,1704371432648,-250.0,0.00028505,2]
[310117974,1704371432658,-165.87,0.0002852,2]
[310117975,1704371432668,-500.67,0.00028651,2]
[310117976,1704371432677,-150.0,0.00028661,2]
[310117977,1704371432687,-244.5,0.0002876,2]
[310117978,1704371432697,-2000.0,0.00028776,2]
[310117979,1704371432707,-3024.91501243,0.0002884,2]
[310117980,1704371432729,-155.0,0.00028848,2]
[310117981,1704371432741,-1139.25474807,0.00028849,2]
[310117982,1704371432751,-40603.33,0.0002885,2]
[310117983,1704371432764,-213.9,0.00028867,2]
[310117984,1704371432775,-315.06,0.00028891,2]
[310117985,1704371432788,-1068.52,0.000289,2]
[310117986,1704371432797,-323.40330703,0.00028906,2]
[310117987,1704371432808,-154.74,0.00028961,2]
[310117988,1704371432819,-3405.53,0.00028982,2]
[310117989,1704371432829,-1311.31,0.0002899,10]
[310117990,1704371432839,-940.98,0.0002899,10]
[310117991,1704371432848,-1198.19,0.0002899,10]
[310117992,1704371432859,-998.49,0.0002899,10]
[310117993,1704371432869,-27573.49436465,0.00029,2]
[310117994,1704371432879,-1300.0,0.00029,3]
[310117995,1704371432889,-477.51,0.00029005,2]
[310117996,1704371432898,-165.87,0.00029014,2]
[310117997,1704371432909,-786.1,0.00029038,2]
[310117998,1704371432918,-6601.0785,0.000291,2]
[310117999,1704371432929,-2894.7471,0.000291,2]
[310118000,1704371432939,-828.7832,0.000291,2]
[310118001,1704371432949,-205.0,0.00029144,8]
[310118002,1704371433248,-157.17,0.00029145,2]
[310118003,1704371433259,-400.12,0.00029194,2]
[310118004,1704371433270,-5258.88141572,0.00029198,2]
[310118005,1704371433280,-537.41483407,0.00029198,2]
[310118006,1704371433290,-3611.21310011,0.00029198,2]
[310118007,1704371433300,-2770.37255743,0.00029199,2]
[310118008,1704371433310,-533.93,0.0002936,2]
[310118009,1704371433320,-153.66,0.00029402,2]
[310118010,1704371433332,-154.74,0.00029456,2]
[310118011,1704371433342,-165.87,0.00029508,2]
[310118012,1704371433351,-2235.37563617,0.00029758,2]
[310118013,1704371433361,-153.66,0.00029905,2]
[310118014,1704371433371,-157.17,0.00029929,2]
[310118015,1704371433380,-154.74,0.0002995,2]
[310118016,1704371433391,-477.51,0.00029984,2]
[310118017,1704371433401,-580.71892747,0.0003,2]
[310118018,1704371433411,-155.0,0.0003,2]
[310118019,1704371433423,-509.16822018,0.0003,6]
[310118020,1704371433433,-15484.93609872,0.0003,2]
[310118021,1704371433444,-4391.52078091,0.0003,4]
[310118022,1704371433479,-1567.90405512,0.0003,4]
[310118028,1704371438055,-3078.8196,0.000289,2]
[310118029,1704371438067,-301.58894815,0.000289,2]
[310118030,1704371438158,-263.40803857,0.000289,2]
[310118031,1704371438239,-567.07277971,0.000289,2]
[310118032,1704371438303,-321.99428296,0.000289,2]
[310118094,1704371440464,-701.66,0.000289,2]
[310118095,1704371440525,-390.88979445,0.000289,2]
[310118158,1704371442909,-200.45305616,0.000289,2]
[310118159,1704371442919,-1555.19204112,0.0003,4]
[310118160,1704371442954,-432.6,0.0003,4]
[310118161,1704371443016,-34212.6717265,0.0003,4]
[310118162,1704371443026,-165.87,0.00030003,2]
[310118163,1704371443035,-345.40104,0.00030198,2]
[310118164,1704371443046,-1000.0,0.000302,2]
[310118165,1704371443057,-345.40104,0.00030298,2]
[310118166,1704371443066,-345.40104,0.00030398,2]
[310118167,1704371443075,-153.66,0.00030408,2]
[310118168,1704371443085,-345.40104,0.00030498,2]
[310118169,1704371443096,-345.40104,0.00030598,2]
[310118170,1704371443106,-832.07,0.00030611,10]
[310118171,1704371443116,-387.55,0.0003062,2]
[310118172,1704371443127,-10387.56,0.0003062,2]
[310118173,1704371443136,-407.14,0.0003062,2]
[310118174,1704371443145,-11298.63,0.0003062,2]
[310118175,1704371443154,-2177.39,0.0003062,2]
[310118176,1704371443164,-1068.58,0.0003062,2]
[310118177,1704371443173,-345.40104,0.00030698,2]
[310118178,1704371443183,-157.17,0.00030712,2]
[310118179,1704371443192,-500.0,0.0003079,10]
[310118180,1704371443202,-345.40104,0.00030798,2]
[310118182,1704371443212,-175.77,0.000308,2]
[310118184,1704371443221,-155.0,0.000308,2]
[310118185,1704371443231,-345.40104,0.00030898,2]
[310118186,1704371443239,-243.39345415,0.00030898,4]
[310118187,1704371443249,-1190.85,0.00030898,4]
[310118188,1704371443259,-1702.94991301,0.00030898,4]
[310118189,1704371443269,-576.50989765,0.00030898,4]
[310118190,1704371443278,-155.90037049,0.00030898,4]
[310118191,1704371443288,-155.0,0.00030898,4]
[310118192,1704371443297,-213.948828,0.00030898,4]
[310118193,1704371443307,-324.2819283,0.00030898,4]
[310118194,1704371443316,-202.3767561,0.00030898,4]
[310118195,1704371443325,-2170.18996934,0.00030898,2]
[310118196,1704371443336,-260.81261785,0.00030898,4]
[310118197,1704371443346,-10091.8916,0.00030899,2]
[310118198,1704371443355,-1143.85157393,0.00030899,4]
[310118199,1704371443364,-170.9681268,0.00030899,5]
[310118200,1704371443374,-356.4792527,0.00030899,2]
[310118201,1704371443383,-153.66,0.00030911,2]
[310118202,1704371443393,-151.3629907,0.00030947,2]
[310118203,1704371443402,-477.51,0.00030962,2]
[310118204,1704371443411,-155.37204695,0.00030995,2]
[310118205,1704371443421,-290.02898221,0.00030997,4]
[310118206,1704371443430,-234.39530691,0.00030997,2]
[310118207,1704371443441,-336.43129982,0.00030997,4]
[310118208,1704371443451,-527.39170543,0.00030997,4]
[310118209,1704371443461,-214.99495567,0.00030998,2]
[310118210,1704371443474,-155.0,0.00030998,4]
[310118211,1704371443484,-172.99308414,0.00030998,4]
[310118212,1704371443493,-541.01045438,0.00030998,4]
[310118213,1704371443502,-1847.7844965,0.00030998,4]
[310118214,1704371443733,-1041.19932575,0.00030998,4]
[310118215,1704371443743,-309.08429853,0.00030998,4]
[310118216,1704371443753,-345.40104,0.00030998,2]
[310118217,1704371443763,-11268.2141208,0.00030998,2]
[310118218,1704371443772,-764.13941335,0.00030998,2]
[310118219,1704371443782,-364.99858209,0.00030998,4]
[310118220,1704371443792,-253.0,0.00030998,2]
[310118221,1704371443801,-2135.39643848,0.00030999,4]
[310118222,1704371443811,-130550.10591589,0.00030999,4]
[310118223,1704371443821,-453.67825,0.00030999,2]
[310118224,1704371443831,-10657.57865297,0.00031,3]
[310118225,1704371443840,-300702.90808648,0.00031,2]
[310118226,1704371443853,-450.39572349,0.00031,2]
[310118227,1704371443864,-2272.75,0.00031,2]
[310118231,1704371445880,-212.65233168,0.00028899,2]
[310118232,1704371445890,-254.51011864,0.00028899,2]
[310118233,1704371445899,-2108.4225,0.000289,2]
[310118234,1704371445908,-297.13651244,0.00029447,2]
[310118236,1704371445919,-1008.425,0.00029447,2]
[310118237,1704371445930,-1812.16023461,0.00029447,2]
[310118238,1704371445939,-491.82057644,0.00030997,4]
[310118239,1704371445950,-430.672275,0.00030997,4]
[310118240,1704371445961,-2323.4,0.00030997,4]
[310118241,1704371447583,-3989.67273444,0.00030997,4]
[310118242,1704371447610,-245.56972835,0.00028899,2]
[310118243,1704371447620,-186.82277165,0.00030997,4]
[310118244,1704371728592,250.0,0.000192,2]
[310118246,1704371748507,283.49165641,0.000192,2]
[310118247,1704371764528,285.56580524,0.000192,2]
[310118250,1704371932493,-3117.72174705,0.00023158,2]
[310118251,1704371932517,-155.9617372,0.00023158,2]
[310118252,1704371932543,-1002.62841933,0.00023159,2]
[310118253,1704371932564,-4534.68809642,0.00023162,2]
[310118261,1704372182496,170.46,0.00022211,2]
[310118283,1704372632232,-446.2755679,0.00023039,2]
[310118284,1704372632243,-225.62631525,0.0002304,2]
[310118309,1704372632716,-6.438923,0.0002304,2]
[310118310,1704372632730,-729.48444278,0.0002304,2]
[310118311,1704372632742,-2156.17206602,0.0002304,2]
[310118312,1704372632752,-1002.62841933,0.00023041,2]
[310118313,1704372632762,-162.6090025,0.00023062,2]
[310118314,1704372632772,-465.31190358,0.00023162,2]
[310118315,1704372632783,-2407.16198758,0.00023162,2]
[310118316,1704372632793,-162.60900243,0.0002384,2]
[310118317,1704372632802,-1600.84947588,0.000241,2]
[310118318,1704372632813,-162.60900243,0.00024618,2]
[310118319,1704372632824,-162.60900243,0.00025397,2]
[310118320,1704372632834,-1534.7247173,0.00025412,2]
[310118321,1704372632843,-564.96,0.00025583,2]
[310118322,1704372632852,-162.60900243,0.00026175,2]
[310118323,1704372632864,-685.97388283,0.00026198,2]
[310118324,1704372632876,-337.93099748,0.00026199,2]
[310118325,1704372632887,-12855.0,0.000262,2]
[310118326,1704372632896,-1322.0,0.000262,2]
[310118327,1704372632907,-4617.65,0.000262,2]
[310118328,1704372632917,-348.5898851,0.00026347,2]
[310118329,1704372632926,-162.60900243,0.00026953,2]
[310118330,1704372632937,-298.789,0.0002707,2]
[310118331,1704372632946,-3267.07,0.00027167,2]
[310118332,1704372632955,-3589.62,0.00027209,2]
[310118333,1704372632963,-150.0,0.00027258,2]
[310118334,1704372632973,-828.88,0.00027369,2]
[310118335,1704372632982,-591.38,0.00027385,2]
[310118336,1704372632991,-250.0,0.00027397,2]
[310118337,1704372633000,-152.82,0.00027397,2]
[310118338,1704372633009,-919.15,0.00027414,2]
[310118339,1704372633019,-575.9,0.0002742,2]
[310118340,1704372633029,-200.0,0.00027435,2]
[310118341,1704372633040,-750.0,0.00027436,2]
[310118342,1704372633050,-189.72,0.00027446,10]
[310118343,1704372633064,-500.0,0.00027467,2]
[310118344,1704372633073,-202.81,0.0002747,2]
[310118345,1704372633083,-250.0,0.000275,2]
[310118346,1704372633093,-200.0,0.00027551,2]
[310118347,1704372633102,-499.99,0.00027588,2]
[310118348,1704372633111,-150.0,0.00027627,2]
[310118349,1704372633123,-162.60900243,0.00027731,2]
[310118350,1704372633133,-248.44,0.000278,2]
[310118351,1704372633142,-338.0,0.00027807,2]
[310118352,1704372633152,-564.96,0.00027847,2]
[310118353,1704372633162,-152.82,0.00027872,2]
[310118354,1704372633173,-248.44,0.00027876,2]
[310118355,1704372633182,-209.65275886,0.00027897,2]
[310118356,1704372633193,-248.44,0.00027953,2]
[310118357,1704372633202,-1364.29,0.00028013,2]
[310118358,1704372633211,-248.44,0.00028029,2]
[310118359,1704372633221,-248.44,0.00028105,2]
[310118360,1704372633231,-23900.0,0.00028128,2]
[310118361,1704372633240,-3520.22,0.00028159,2]
[310118362,1704372633251,-248.44,0.00028181,2]
[310118363,1704372633261,-309.95,0.00028187,2]
[310118364,1704372633270,-200.0,0.00028237,2]
[310118365,1704372633279,-248.44,0.00028258,2]
[310118366,1704372633289,-248.44,0.00028334,2]
[310118367,1704372633298,-152.82,0.00028347,2]
[310118368,1704372633321,-575.9,0.00028399,2]
[310118369,1704372633331,-248.44,0.0002841,2]
[310118370,1704372633341,-248.44,0.00028486,2]
[310118371,1704372633351,-162.60900243,0.00028509,2]
[310118372,1704372633361,-248.44,0.00028563,2]
[310118373,1704372633374,-248.44,0.00028639,2]
[310118374,1704372633385,-248.44,0.00028715,2]
[310118375,1704372633394,-192.83,0.00028754,2]
[310118376,1704372633404,-171.12,0.00028758,2]
[310118377,1704372633413,-248.44,0.00028791,2]
[310118378,1704372633423,-152.82,0.00028822,2]
[310118379,1704372633433,-168.36,0.00028826,2]
[310118380,1704372633445,-5000.0,0.00028827,2]
[310118381,1704372633462,-248.44,0.00028868,2]
[310118382,1704372633472,-248.44,0.00028944,2]
[310118383,1704372633481,-205.0,0.00029001,2]
[310118384,1704372633491,-248.44,0.0002902,2]
[310118385,1704372633502,-248.44,0.00029096,2]
[310118386,1704372633519,-248.44,0.00029173,2]
[310118387,1704372633528,-248.44,0.00029249,2]
[310118388,1704372633538,-162.60900243,0.00029287,2]
[310118389,1704372633548,-575.9,0.00029377,2]
[310118390,1704372633558,-693.39,0.0002979,10]
[310118391,1704372633568,-18362.0144,0.000298,2]
[310118392,1704372633578,-1926.4726,0.000298,2]
[310118393,1704372633587,-241.7259282,0.00029852,2]
[310118394,1704372633597,-695.52274718,0.00029853,2]
[310118395,1704372633607,-150.58,0.00029854,2]
[310118396,1704372633619,-815.39,0.00029878,2]
[310118397,1704372633630,-1139.852,0.000299,2]
[310118398,1704372633642,-1486.536,0.000299,2]
[310118399,1704372633653,-312.3902,0.000299,2]
[310118400,1704372633663,-500.0,0.000299,2]
[310118401,1704372633673,-1266.3812,0.000299,2]
[310118402,1704372633683,-54408.7741,0.000299,2]
[310118403,1704372633693,-474.537,0.000299,2]
[310118404,1704372633704,-33294.28461992,0.00029999,2]
[310118405,1704372633714,-1048.76755714,0.0003,7]
[310118406,1704372633725,-1092.4092895,0.0003,2]
[310118407,1704372633736,-1000.0,0.0003,2]
[310118408,1704372633746,-23422.16033536,0.0003,2]
[310118409,1704372633756,-155.0,0.0003,2]
[310118410,1704372633769,-580.71892747,0.0003,2]
[310118411,1704372633779,-162.60900243,0.00030066,2]
[310118412,1704372633789,-564.96,0.0003011,2]
[310118413,1704372633799,-153.84,0.00030214,2]
[310118414,1704372633808,-575.9,0.00030355,2]
[310118415,1704372633818,-152.5,0.00030419,2]
[310118416,1704372633828,-150.58,0.00030451,2]
[310118417,1704372633838,-484.1799,0.00030521,2]
[310118418,1704372633848,-1100.05306559,0.00030593,2]
[310118419,1704372633858,-1522.596773,0.000306,2]
[310118420,1704372633868,-150.0,0.00030606,2]
[310118421,1704372633880,-20945.07767715,0.0003069,2]
[310118422,1704372633891,-1100.05306559,0.00030708,2]
[310118423,1704372633902,-5000.0,0.00030767,2]
[310118424,1704372633912,-828.88,0.0003079,2]
[310118425,1704372633922,-500.0,0.0003079,10]
[310118426,1704372633934,-2224.7998,0.00030799,2]
[310118427,1704372633943,-350.67,0.000308,2]
[310118428,1704372633953,-155.0,0.000308,2]
[310118429,1704372633962,-150.0,0.00030813,2]
[310118430,1704372633971,-162.60900243,0.00030844,2]
[310118431,1704372633981,-242.4137,0.00030897,2]
[310118432,1704372633992,-170.96812677,0.00030897,5]
[310118433,1704372634002,-34005.0518,0.000309,2]
[310118434,1704372634011,-176.63,0.00030957,2]
[310118435,1704372634020,-233.93840478,0.00030996,2]
[310118436,1704372634030,-198.76918,0.00030997,4]
[310118437,1704372634039,-526.50745505,0.00030997,2]
[310118438,1704372634050,-3317.54959286,0.00030997,4]
[310118439,1704372634066,-372.10188163,0.00030997,4]
[310118440,1704372634076,-289.53753883,0.00030997,7]
[310118441,1704372634085,-652.188973,0.00030997,4]
[310118442,1704372634100,-2266.12607772,0.00030997,4]
[310118443,1704372634110,-166.40466336,0.00030997,4]
[310118444,1704372634121,-189.62843204,0.00030997,4]
[310118448,1704372638205,-577.83,0.0003099,10]
[310118449,1704372638215,-3016.85211402,0.00030997,4]
[310118450,1704372638226,-572.85073482,0.00030997,4]
[310118451,1704372638235,-4342.82788122,0.00030998,2]
[310118452,1704372638244,-697.37095126,0.00030998,4]
[310118453,1704372638254,-1652.78651006,0.00030999,4]
[310118454,1704372638263,-191.67928423,0.00030999,4]
[310118455,1704372638272,-238.58597926,0.00030999,2]
[310118456,1704372638282,-9694.00127013,0.00031,2]
[310118457,1704372638294,-9213.66583968,0.00031,2]
[310118458,1704372638345,-338.0,0.00030563,2]
[310118459,1704372638355,-151.06619884,0.00031,2]
[310118460,1704372638370,-457.57415998,0.00031,2]
[310118461,1704372638381,-1471.017502,0.00031,2]
[310118462,1704372638401,-1481.07984364,0.00031,2]
[310118522,1704372641360,-24106.12143345,0.00031,2]
[310118523,1704372641370,-2500.0,0.00031,3]
[310118524,1704372641381,-1350.0,0.00031,3]
[310118525,1704372641391,-3000.0,0.00031,2]
[310118526,1704372641401,-378.0652,0.00031,2]
[310118527,1704372641411,-500.0,0.00031016,2]
[310118528,1704372641422,-150.58,0.00031048,2]
[310118529,1704372641432,-234.40104,0.00031098,2]
[310118530,1704372641442,-303.96,0.00031098,2]
[310118531,1704372641451,-5176.33406162,0.000311,4]
[310118532,1704372641461,-1000.0,0.00031109,7]
[310118533,1704372641470,-153.84,0.0003113,2]
[310118534,1704372641481,-152.5,0.00031134,2]
[310118535,1704372641490,-234.40104,0.00031198,2]
[310118536,1704372641500,-2554.1069851,0.0003122,4]
[310118537,1704372641509,-198.0,0.00031262,5]
[310118538,1704372641519,-500.0,0.00031262,2]
[310118539,1704372641528,-234.40104,0.00031298,2]
[310118540,1704372641536,-500.0,0.00031299,2]
[310118541,1704372641545,-1100.05306559,0.00031329,2]
[310118542,1704372641555,-575.9,0.00031334,2]
[310118543,1704372641564,-500.0,0.00031338,10]
[310118544,1704372641574,-5000.0,0.00031384,2]
[310118545,1704372641584,-234.40104,0.00031398,2]
[310118546,1704372641593,-153.66,0.00031413,2]
[310118547,1704372641603,-300.00000003,0.00031462,2]
[310118548,1704372641612,-157.17,0.00031495,2]
[310118549,1704372641622,-234.40104,0.00031498,2]
[310118550,1704372641633,-150.0,0.000315,2]
[310118551,1704372641642,-150.0,0.00031524,2]
[310118552,1704372641653,-293.32,0.00031524,2]
[310118553,1704372641663,-293.32,0.00031524,2]
[310118554,1704372641673,-293.32,0.00031524,2]
[310118555,1704372641683,-265.32,0.00031524,2]
[310118556,1704372641692,-150.0,0.00031525,2]
[310118557,1704372641702,-150.0,0.00031527,2]
[310118558,1704372641711,-150.0,0.0003153,2]
[310118559,1704372641720,-150.0,0.0003153,2]
[310118560,1704372641731,-150.0,0.00031531,2]
[310118561,1704372641741,-150.0,0.00031532,2]
[310118562,1704372641751,-150.0,0.00031536,2]
[310118563,1704372641761,-150.0,0.00031536,2]
[310118564,1704372641771,-150.0,0.00031545,2]
[310118565,1704372641780,-300.0,0.00031552,2]
[310118566,1704372641789,-150.0,0.00031556,2]
[310118567,1704372641799,-150.0,0.00031559,2]
[310118568,1704372641808,-150.0,0.00031563,2]
[310118569,1704372641818,-150.0,0.00031571,2]
[310118570,1704372641827,-150.0,0.00031574,2]
[310118571,1704372641836,-150.0,0.00031576,2]
[310118572,1704372641845,-150.0,0.00031582,2]
[310118573,1704372641854,-150.0,0.00031582,2]
[310118574,1704372641863,-150.0,0.00031584,2]
[310118575,1704372641872,-150.0,0.00031585,2]
[310118576,1704372641882,-150.0,0.00031589,2]
[310118577,1704372641892,-150.0,0.00031594,2]
[310118578,1704372641902,-150.0,0.00031595,2]
[310118579,1704372641911,-234.40104,0.00031598,2]
[310118580,1704372641920,-150.0,0.00031599,2]
[310118581,1704372641929,-150.0,0.00031602,2]
[310118582,1704372641937,-150.0,0.00031606,2]
[310118583,1704372641945,-150.0,0.00031616,2]
[310118584,1704372641951,-162.60900243,0.00031622,2]
[310118585,1704372641960,-150.0,0.00031623,2]
[310118586,1704372641969,-150.0,0.00031627,2]
[310118587,1704372641979,-150.0,0.00031629,2]
[310118588,1704372641987,-268.95064726,0.0003163,2]
[310118589,1704372641998,-150.0,0.00031632,2]
[310118590,1704372642007,-150.0,0.00031634,2]
[310118591,1704372642016,-150.0,0.00031635,2]
[310118592,1704372642025,-150.0,0.00031635,2]
[310118593,1704372642034,-150.0,0.00031638,2]
[310118594,1704372642043,-1500.0,0.00031639,2]
[310118595,1704372642052,-150.0,0.00031644,2]
[310118596,1704372642064,-150.58,0.00031645,2]